bitfinex-derivatives/quotes_BNBF0:USTF0_20250425
["timestamp","ask_amount","ask_price","bid_price","bid_amount"]
[1745547918004,1.25748378,601.08,598.31,0.30666239]
[1745547918204,0.29044535,601.07,598.3,0.30666239]
[1745547918408,0.29044535,601.07,598.31,0.30666239]
[1745547918605,0.29044535,601.07,598.29,2.548]
[1745547918812,0.29044535,601.07,598.3,0.30670699]
[1745547919310,0.29044535,601.07,598.29,2.548]
[1745547919609,0.29044535,601.07,598.3,0.30672229]
[1745547919909,1.25748378,601.08,598.3,0.30672229]
[1745547920111,1.25748378,601.04,598.3,0.30672229]
[1745547920510,1.25748378,601.04,598.29,2.548]
[1745547920810,1.25748378,601.04,598.3,0.30666668]
[1745547921011,1.25748378,601.04,598.09,0.30666668]
[1745547921211,1.25748378,601.04,598.1,0.30666668]
[1745547921410,1.25748378,601.04,598.09,0.30666668]
[1745547921710,1.25748378,601.04,598.08,0.29045989]
[1745547921907,1.25748378,601.04,598.09,0.30668259]
[1745547923112,1.25748378,601.04,597.63,0.30668259]
[1745547923307,0.29046111,601.03,598.08,0.29046111]
[1745547923512,0.29046111,601.03,598.09,0.30668259]
[1745547923913,0.29046111,601.03,598.1,0.30668259]
[1745547924113,0.29046111,601.03,597.37,0.30668259]
[1745547924311,0.29046111,601.03,598.08,0.2905193]
[1745547924507,0.29046111,601.03,598.09,0.30668259]
[1745547924712,0.29046111,601.03,597.37,0.30668259]
[1745547924909,0.29046111,601.03,598.1,1.388]
[1745547925207,0.29046111,601.03,598.11,0.306652]
[1745547925411,0.29046111,601.03,598.11,1.729652]
[1745547925610,0.29046111,601.03,598.12,0.306652]
[1745547926316,0.29046111,601.03,598.13,1.344]
[1745547926510,0.29046111,601.03,598.14,0.306652]
[1745547927916,0.29046111,601.03,598.13,2.739]
[1745547928116,0.29046111,601.03,598.14,0.30665403]
[1745547931924,1.25748378,601.22,598.14,0.30665403]
[1745547932124,0.29044777,601.02,598.14,0.30665403]
[1745547932423,1.25748378,601.06,598.14,0.30665403]
[1745547933123,0.29046717,601.05,598.14,0.30665403]
[1745547934225,0.29046717,601.05,598.15,0.30665403]
[1745547934525,0.29046717,601.05,598.16,0.30665403]
[1745547934724,0.29046717,601.05,598.17,0.30665403]
[1745547934925,1.25748378,601.08,598.18,0.30665403]
[1745547935226,0.29047444,601.04,598.19,0.30665403]
[1745547935418,0.29047444,601.04,598.2,0.30665403]
[1745547935623,0.29047444,601.04,598.21,0.30665403]
[1745547935821,0.29047444,601.04,598.22,0.30665403]
[1745547936027,0.29047444,601.04,598.23,0.30665403]
[1745547936221,0.29047444,601.04,598.24,0.30665403]
[1745547936421,0.29047444,601.04,598.25,0.30665403]
[1745547936722,1.25748378,600.42,598.26,0.30665403]
[1745547937026,1.25748378,600.42,598.27,0.30665403]
[1745547937230,1.25748378,600.42,598.28,0.30665403]
[1745547937425,1.25748378,600.42,598.29,0.30665403]
[1745547937621,1.25748378,600.42,598.3,0.30665403]
[1745547937823,1.25748378,600.42,598.14,0.30665403]
[1745547938027,1.25748378,600.42,598.15,0.30665403]
[1745547938326,1.25748378,600.42,598.16,0.30665403]
[1745547938530,1.25748378,600.42,598.17,0.30665403]
[1745547938729,1.25748378,600.42,598.18,0.30665403]
[1745547938929,1.25748378,600.42,598.13,2.739]
[1745547938930,1.25748378,600.42,598.19,0.30665403]
[1745547939129,1.25748378,600.63,598.2,0.30665403]
[1745547939525,1.25748378,600.63,598.13,2.739]
[1745547939731,1.25748378,600.63,598.14,0.30667293]
[1745547939933,1.25748378,600.63,598.15,0.30667293]
[1745547940131,1.25748378,600.63,598.14,0.30667293]
[1745547941027,1.25748378,600.63,598.15,0.30674739]
[1745547941231,1.25748378,600.63,598.14,0.30674739]
[1745547941425,1.25748378,600.63,598.15,0.30674739]
[1745547941630,1.25748378,600.72,598.14,0.30674739]
[1745547941830,1.25748378,600.72,598.15,0.30674739]
[1745547942030,1.25748378,600.72,598.16,0.30674739]
[1745547942227,1.25748378,600.72,598.17,0.30674739]
[1745547942426,1.25748378,600.72,598.14,0.30674739]
[1745547942626,1.25748378,600.72,598.15,0.30674739]
[1745547942828,1.25748378,600.72,598.14,0.30674739]
[1745547943029,1.25748378,600.72,598.15,0.30674739]
[1745547943230,1.25748378,600.72,598.14,0.30674739]
[1745547944131,2.13946894,601.44,598.13,1.395]
[1745547944132,0.29052537,600.71,598.15,0.30674115]
[1745547944332,0.29052537,600.71,598.15,1.78774115]
[1745547944633,0.29052537,600.71,598.16,0.30674115]
[1745547946534,1.25748378,600.69,598.16,0.30674115]
[1745547947330,0.2905193,600.68,598.16,0.30674115]
[1745547947634,0.2905193,600.68,598.17,0.30673326]
[1745547947827,0.2905193,600.68,598.16,0.30673326]
[1745547948029,0.2905193,600.68,598.17,0.30673326]
[1745547948228,0.2905193,600.68,598.18,0.30673326]
[1745547948433,0.2905193,600.68,598.16,0.30673326]
[1745547948629,0.2905193,600.68,598.17,0.30673326]
[1745547948835,0.2905193,600.68,598.16,0.30673326]
[1745547949029,0.2905193,600.68,598.17,0.30673326]
[1745547949334,0.2905193,600.68,598.18,0.30673326]
[1745547949535,0.2905193,600.68,598.23,1.05528557]
[1745547949536,1.25748378,600.43,598.23,1.05528557]
[1745547949831,1.25748378,600.43,598.24,0.30673326]
[1745547950335,0.29051203,600.42,598.24,0.30673326]
[1745547952437,0.29051203,600.42,598.25,1.367]
[1745547952638,1.25748378,600.4,598.31,1.05528557]
[1745547952933,1.25748378,600.4,598.32,0.30673326]
[1745547953137,1.25748378,600.4,598.33,0.30673326]
[1745547953337,1.25748378,600.4,598.31,1.05528557]
[1745547953541,1.25748378,600.4,598.32,0.30659263]
[1745547953734,1.25748378,600.4,598.33,0.30659263]
[1745547953937,1.25748378,600.4,598.34,0.30659263]
[1745547954134,1.25748378,600.4,598.35,0.30659263]
[1745547954434,1.25748378,600.4,598.36,0.30659263]
[1745547954637,1.25748378,600.4,598.31,1.05528557]
[1745547954638,1.25748378,600.4,598.37,0.30659263]
[1745547954941,1.25748378,600.4,598.38,0.30655518]
[1745547955234,1.25748378,600.4,598.31,1.05528557]
[1745547955235,1.25748378,600.4,598.39,0.30655518]
[1745547955436,1.25748378,600.4,598.32,0.30655518]
[1745547955636,1.25748378,600.4,598.4,0.30655518]
[1745547955837,1.54799581,600.42,598.49,1.05528557]
[1745547956035,1.54799581,600.42,598.5,0.30655518]
[1745547956036,1.25748378,600.42,598.5,0.30655518]
[1745547956239,0.2904502,600.39,598.5,0.30655518]
[1745547956538,0.2904502,600.39,598.51,0.30656461]
[1745547956731,0.2904502,600.39,598.52,0.30656461]
[1745547956934,0.2904502,600.39,598.5,0.30656461]
[1745547957233,0.2904502,600.39,598.51,0.30656461]
[1745547957437,0.2904502,600.39,598.49,1.05528557]
[1745547957438,0.2904502,600.39,598.5,0.30656461]
[1745547957636,0.2904502,600.39,598.51,0.30656461]
[1745547957839,0.2904502,600.39,598.5,0.30656461]
[1745547958941,1.25748378,600.42,598.5,0.30656461]
[1745547959141,1.25748378,600.61,598.5,0.30656461]
[1745547959341,1.25748378,600.61,598.42,0.30656461]
[1745547959541,1.25748378,600.61,598.43,0.30656461]
[1745547959739,1.25748378,600.61,598.42,0.30656461]
[1745547959937,1.25748378,600.61,598.43,0.30656461]
[1745547960137,1.25748378,600.61,598.42,0.30656461]
[1745547960337,0.29043929,600.6,598.41,1.05528557]
[1745547961743,0.29043929,600.6,598.28,0.29043929]
[1745547961944,1.25748378,601.64,598.25,1.367]
[1745547963243,0.29034115,601.57,598.26,0.29034115]
[1745547963544,0.29034115,601.57,598.27,0.30662356]
[1745547964943,1.25748378,601.62,598.27,0.30662356]
[1745547965144,1.25748378,601.62,598.26,0.30662356]
[1745547965339,0.29032298,601.56,598.27,0.30662356]
[1745547967048,2.13946894,601.52,598.27,0.30662356]
[1745547967239,2.13946894,601.52,598.26,0.30662356]
[1745547967944,2.13946894,601.52,598.27,0.30669863]
[1745547968141,2.13946894,601.52,598.28,0.30669863]
[1745547968346,2.13946894,601.52,598.29,0.30669863]
[1745547968547,2.13946894,601.52,598.26,0.30669863]
[1745547968747,2.13946894,601.52,598.27,0.30669863]
[1745547968946,2.13946894,601.52,598.18,0.2903787]
[1745547968947,2.13946894,601.52,598.19,0.30669863]
[1745547969147,2.13946894,601.52,598.2,0.30669863]
[1745547969349,2.13946894,601.52,598.18,0.2903787]
[1745547969649,2.13946894,601.52,598.19,0.30665861]
[1745547970950,2.13946894,601.52,598.2,0.30664607]
[1745547971247,2.13946894,601.52,598.21,0.30664607]
[1745547971544,2.13946894,601.52,598.22,0.30664607]
[1745547971948,0.29032298,601.56,598.22,0.30664607]
[1745547972645,0.29032298,601.56,598.23,1.488]
[1745547972849,0.29032298,601.56,598.24,0.30664607]
[1745547973845,0.29032298,601.56,598.23,1.488]
[1745547974150,0.60620794,606.27,598.24,0.30662982]
[1745547975349,0.29026245,602.2,598.25,0.30662982]
[1745547975552,0.29026245,602.2,598.24,0.30662982]
[1745547975754,0.29026245,602.2,598.25,0.30662982]
[1745547975954,0.29026245,602.2,598.26,0.30662982]
[1745547976154,0.29026245,602.2,598.27,0.30662982]
[1745547976352,0.29026245,602.2,598.28,0.30662982]
[1745547976552,0.29026245,602.2,598.21,0.30662982]
[1745547976756,0.29026245,602.2,598.22,0.30662982]
[1745547977056,0.29026245,602.2,598.23,0.30660694]
[1745547977359,0.29026245,602.2,598.24,0.30660694]
[1745547977655,0.29026245,602.2,598.25,0.30660694]
[1745547977856,0.29026245,602.2,598.26,0.30660694]
[1745547978053,0.29026245,602.2,598.21,0.30660694]
[1745547978253,0.29026245,602.2,598.22,0.30660694]
[1745547978460,0.29026245,602.2,598.2,0.29026245]
[1745547978652,0.29026245,602.2,598.21,0.3066078]
[1745547978957,0.29026245,602.2,598.2,0.29026245]
[1745547979559,0.29026245,602.2,598.21,0.30658683]
[1745547979959,0.60620794,606.27,598.21,0.30658683]
[1745547980154,0.60620794,606.53,594.92,0.71587162]
[1745547980354,0.60620794,606.53,598.22,2.704]
[1745547980659,0.60620794,606.53,598.23,0.30658257]
[1745547981355,0.29023703,602.2,598.23,0.30658257]
[1745547981659,0.29023703,602.2,598.22,2.704]
[1745547981860,0.29023703,602.2,598.23,0.30655831]
[1745547982063,1.25428612,600.27,598.23,0.30655831]
[1745547982663,1.25428612,600.27,598.24,1.277]
[1745547982858,1.25428612,600.27,598.25,0.30655831]
[1745547983264,0.29047929,600.26,598.25,0.30655831]
[1745547983962,0.29047929,600.26,598.26,1.151]
[1745547984163,0.29047929,600.26,598.27,0.30655831]
[1745547984659,0.29047929,600.26,598.26,1.151]
[1745547984856,0.29047929,600.26,598.27,0.30657928]
[1745547985963,1.25428612,600.5,598.27,0.30657928]
[1745547987264,0.29044899,600.49,598.27,0.30657928]
[1745547988964,1.25428612,600.67,598.27,0.30657928]
[1745547989262,0.29042838,600.48,598.27,0.30657928]
[1745547989563,1.25428612,600.67,598.27,0.30657928]
[1745547990164,1.25428612,600.65,598.28,1.05852008]
[1745547990364,1.25428612,600.65,598.29,0.30657928]
[1745547992160,1.25428612,600.65,598.28,1.05852008]
[1745547992364,0.2904502,600.64,598.29,0.30662787]
[1745547993566,1.54473632,600.64,598.29,0.30662787]
[1745547993758,1.54473632,600.64,598.27,0.2904502]
[1745547993961,1.54473632,600.64,598.28,0.30661723]
[1745547994964,1.25428612,600.64,598.28,0.30661723]
[1745547995165,1.25428612,600.64,598.29,0.30661723]
[1745547995366,0.29045262,600.63,598.27,0.29045262]
[1745547995661,0.29045262,600.63,598.28,0.30662338]
[1745547996266,1.25428612,600.6,598.28,0.30662338]
[1745547998164,1.25428612,600.6,598.26,0.30662338]
[1745547998366,0.29046474,600.59,598.27,0.29046474]
[1745547998660,0.29046474,600.59,598.28,0.30663862]
[1745547998866,1.25428612,600.81,598.28,0.30663862]
[1745547999267,0.29043929,600.8,598.28,0.30663862]
[1745547999467,0.29043929,600.8,598.28,1.91963862]
[1745547999666,0.29043929,600.8,598.29,0.30663862]
[1745548000967,1.25428612,600.81,598.29,0.30663862]
[1745548001270,0.29043808,600.79,598.29,0.30663862]
[1745548002263,0.29043808,600.79,598.3,0.30663862]
[1745548002464,0.29043808,600.79,598.31,0.30663862]
[1745548002663,0.29043808,600.79,598.32,0.30663862]
[1745548002861,0.29043808,600.79,598.33,0.30663862]
[1745548003061,0.29043808,600.79,598.34,0.30663862]
[1745548003265,0.29043808,600.79,598.35,0.30663862]
[1745548003465,0.29043808,600.79,598.36,0.30663862]
[1745548003666,0.29043808,600.79,598.29,0.30663862]
[1745548003865,0.29043808,600.79,598.3,0.30663862]
[1745548004066,1.25428612,600.81,598.31,0.30663862]
[1745548004267,1.25428612,600.81,598.32,0.30663862]
[1745548004468,1.25428612,600.81,598.29,0.29042353]
[1745548004769,1.25428612,600.81,598.3,0.30664461]
[1745548005270,0.29043687,600.8,598.3,0.30664461]
[1745548005967,0.29043687,600.8,598.29,0.29042353]
[1745548006167,0.29043687,600.8,598.3,0.30664629]
[1745548007568,1.25428612,600.7,598.3,0.30664629]
[1745548008965,1.25428612,600.7,598.29,0.29042353]
[1745548009166,1.25428612,600.7,598.3,0.30661463]
[1745548010272,1.25428612,600.7,598.29,0.30661463]
[1745548010570,0.29043323,600.69,598.3,0.30661463]
[1745548012170,0.29043323,600.69,598.31,0.30661759]
[1745548012372,1.25428612,600.66,598.3,0.30661759]
[1745548012575,1.25428612,600.66,598.31,0.30661759]
[1745548012770,1.25428612,600.66,598.3,0.30661759]
[1745548012968,1.25428612,600.66,598.31,0.30661759]
[1745548013174,1.25428612,600.66,598.3,0.30661759]
[1745548013368,1.25428612,600.66,598.31,0.30661759]
[1745548013672,1.25428612,600.66,598.32,0.30661507]
[1745548013868,1.25428612,600.66,598.3,0.30661507]
[1745548014073,1.25428612,600.66,598.31,0.30661507]
[1745548014273,1.25428612,600.66,598.3,0.30661507]
[1745548014474,1.25428612,600.66,598.31,0.30661507]
[1745548014877,1.25428612,600.41,598.38,1.05852008]
[1745548015375,1.25428612,600.41,598.39,0.3066181]
[1745548016380,0.29046474,600.4,598.39,0.3066181]
[1745548017080,1.25428612,600.22,598.45,1.05852008]
[1745548017280,1.25428612,600.22,598.46,0.3066181]
[1745548019784,1.25428612,600.23,598.46,0.3066181]
[1745548020082,1.25428612,600.23,598.47,0.3066181]
[1745548020283,1.25428612,600.23,598.42,0.3066181]
[1745548020477,1.25428612,600.23,598.43,0.3066181]
[1745548020678,1.25428612,600.23,598.44,0.3066181]
[1745548020878,1.25428612,600.23,598.42,0.3066181]
[1745548021081,1.25428612,600.23,598.43,0.3066181]
[1745548021280,1.25428612,600.23,598.42,0.3066181]
[1745548021783,1.25428612,600.23,598.42,1.9356181]
[1745548021997,1.25428612,600.23,598.43,0.3066181]
[1745548022278,1.25428612,600.23,598.44,0.30662559]
[1745548022484,0.29048172,600.22,598.43,0.30662559]
[1745548022678,0.29048172,600.22,598.44,0.30662559]
[1745548022979,0.29048172,600.22,598.45,3.14562559]
[1745548023182,0.29048172,600.22,598.46,0.30662559]
[1745548023580,0.29048172,600.22,598.45,2.839]
[1745548023784,0.29048172,600.22,598.46,0.30659736]
[1745548024986,1.25428612,600.26,598.46,0.30659736]
[1745548025281,0.29046474,600.21,598.46,0.30659736]
[1745548025484,0.29046474,600.21,598.54,1.05852008]
[1745548025680,0.29046474,600.21,598.55,0.30659736]
[1745548027785,0.29046474,600.21,598.56,1.05852008]
[1745548028088,1.25428612,600.24,598.57,0.30659736]
[1745548028388,0.29045868,600.2,598.57,0.30659736]
[1745548029688,0.29045868,600.2,598.56,1.05852008]
[1745548029889,0.29045868,600.2,598.57,0.30661226]
[1745548030488,1.25428612,600.13,598.58,1.05852008]
[1745548030783,1.25428612,600.13,598.59,0.30661226]
[1745548031188,0.29048899,600.12,598.58,1.05852008]
[1745548031384,0.29048899,600.12,598.59,0.30662315]
[1745548033386,1.25428612,600.06,598.59,0.30662315]
[1745548034190,1.25428612,600.06,598.58,1.05852008]
[1745548034393,1.25428612,600.06,598.59,0.30661855]
[1745548035393,0.29049263,600.05,598.59,0.30661855]
[1745548035889,0.29049263,600.05,598.6,0.30661744]
[1745548036089,0.29049263,600.05,598.57,0.30661744]
[1745548036286,0.29049263,600.05,598.58,0.30661744]
[1745548036591,0.29049263,600.05,598.59,0.30661744]
[1745548036785,0.29049263,600.05,598.57,0.30661744]
[1745548036989,1.25428612,600.12,598.58,0.30661744]
[1745548037185,1.25428612,600.12,598.57,0.30661744]
[1745548037384,0.29047808,600.11,598.58,0.30660804]
[1745548037589,0.29047808,600.11,598.57,0.30660804]
[1745548037789,0.29047808,600.11,598.58,0.30660804]
[1745548037986,0.29047808,600.11,598.57,0.30660804]
[1745548038492,0.29047808,600.11,598.59,1.05852008]
[1745548038689,0.29047808,600.11,598.6,0.30660804]
[1745548040092,1.25428612,600.15,598.6,0.30660804]
[1745548040287,0.29045868,600.1,598.6,0.30660804]
[1745548041795,0.29045868,600.1,598.58,1.638]
[1745548042996,1.25428612,600.38,598.58,1.638]
[1745548043392,0.29043202,600.09,598.58,1.638]
[1745548043695,1.25428612,600.38,598.58,1.638]
[1745548043997,1.25428612,600.38,598.59,0.30660866]
[1745548044299,1.25428612,601.1,598.59,0.30660866]
[1745548044894,1.25428612,601.1,598.6,0.30661302]
[1745548045095,1.25428612,601.1,598.61,0.30661302]
[1745548045292,0.29035811,600.98,598.59,0.30661302]
[1745548045492,0.29035811,600.98,598.6,0.30661302]
[1745548045693,0.29035811,600.98,598.59,0.30661302]
[1745548045895,0.29035811,600.98,598.6,0.30661302]
[1745548046092,1.25428612,601.1,598.59,0.30661302]
[1745548046396,0.29035811,600.97,598.6,0.30661302]
[1745548046697,0.29035811,600.97,598.61,0.30661302]
[1745548046999,0.29035811,600.97,598.62,0.30661302]
[1745548047193,1.25428612,600.08,598.63,1.05852008]
[1745548047397,1.25428612,600.08,598.64,0.30661302]
[1745548049198,1.25428612,600.08,598.65,1.059]
[1745548049499,0.29046232,600.07,598.66,0.30661302]
[1745548049898,1.25428612,600.21,598.66,0.30661302]
[1745548050300,0.29044414,600.06,598.66,0.30661302]
[1745548050598,1.25428612,600.21,598.66,0.30661302]
[1745548050798,0.29044414,600.05,598.66,0.30661302]
[1745548051101,1.25428612,600.21,598.66,0.30661302]
[1745548051399,0.29044414,600.04,598.66,0.30661302]
[1745548051598,1.25428612,600.21,598.66,0.30661302]
[1745548051898,1.25428612,600.21,598.65,1.059]
[1745548052098,0.29042959,600.05,598.65,1.059]
[1745548052395,1.25428612,600.26,598.65,1.059]
[1745548053411,0.29042353,600.25,598.65,1.059]
[1745548055001,1.25428612,601.04,598.65,1.059]
[1745548055203,1.25428612,601.04,598.65,2.114]
[1745548055400,0.2903242,600.24,598.66,0.30654542]
[1745548055601,1.25428612,601.04,598.66,0.30654542]
[1745548056303,0.29030845,601.03,598.66,0.30654542]
[1745548056799,1.25428612,600.67,598.66,0.30654542]
[1745548057004,1.25428612,600.67,598.67,0.30650503]
[1745548057205,1.25428612,600.67,598.65,3.18]
[1745548057206,1.25428612,600.67,598.68,0.30650503]
[1745548057505,1.25428612,600.67,598.69,0.30650503]
[1745548057705,1.25428612,600.67,598.7,0.30650503]
[1745548057903,1.25428612,600.67,598.7,1.64]
[1745548058100,1.25428612,600.67,598.71,0.30650503]
[1745548058404,0.29033873,600.66,598.7,1.64]
[1745548058607,0.29033873,600.66,598.71,0.30650541]
[1745548059105,0.29033873,600.66,598.7,1.64]
[1745548059405,0.29033873,600.66,598.71,0.30649865]
[1745548059907,0.29033873,600.66,598.7,1.64]
[1745548060107,0.29033873,600.66,598.71,0.3064984]
[1745548061002,1.25428612,600.73,598.71,0.3064984]
[1745548061203,0.29033146,600.65,598.71,0.3064984]
[1745548061607,1.25428612,600.73,598.72,0.30649832]
[1745548061807,1.25428612,600.73,598.71,0.30649832]
[1745548062109,1.25428612,600.73,598.72,0.30649663]
[1745548062304,1.25428612,600.73,598.71,0.30649663]
[1745548062502,0.29031451,600.72,598.72,0.30649663]
[1745548062707,0.29031451,600.72,598.71,0.30649663]
[1745548063007,0.29031451,600.72,598.7,1.64]
[1745548063204,0.29031451,600.72,598.71,0.30646264]
[1745548064109,1.25428612,601.01,598.71,0.30646264]
[1745548065311,0.29026124,601.0,598.71,0.30646264]
[1745548065713,1.25428612,600.83,598.71,0.30646264]
[1745548069011,1.25428612,600.83,598.7,1.64]
[1745548069217,1.25428612,600.83,598.71,0.30641134]
[1745548070419,0.29027576,600.82,598.71,0.30641134]
[1745548070618,0.29027576,600.82,598.72,1.026]
[1745548070811,0.29027576,600.82,598.73,0.30641362]
[1745548071017,0.29027576,600.82,598.73,1.79641362]
[1745548071218,0.29027576,600.82,598.74,0.30641362]
[1745548072121,0.29027576,600.82,598.73,1.49]
[1745548072322,0.29027576,600.82,598.74,0.30640593]
[1745548073023,1.25428612,600.83,598.74,0.30640593]
[1745548073516,0.29027213,600.81,598.74,0.30640593]
[1745548073716,0.29027213,600.81,598.75,0.30641044]
[1745548074017,0.29027213,600.81,598.73,1.49]
[1745548074018,0.29027213,600.81,598.76,0.30641044]
[1745548074223,0.29027213,600.81,598.74,0.30641044]
[1745548074423,0.29027213,600.81,598.75,0.30641044]
[1745548074722,0.29027213,600.81,598.76,0.30641044]
[1745548075017,0.29027213,600.81,598.77,0.30641044]
[1745548075223,0.29027213,600.81,598.73,1.49]
[1745548075425,0.29027213,600.81,598.74,0.30642026]
[1745548076026,1.25428612,600.83,598.74,0.30642026]
[1745548076420,0.29027213,600.8,598.74,0.30642026]
[1745548078221,0.29027213,600.8,598.73,1.49]
[1745548078421,0.29027213,600.8,598.74,0.30640928]
[1745548079023,1.25428612,600.83,598.74,0.30640928]
[1745548079226,0.29027939,600.79,598.74,0.30640928]
[1745548080921,0.29027939,600.79,598.73,1.49]
[1745548081123,0.29027939,600.79,598.74,0.30643568]
[1745548082127,1.25428612,600.83,598.74,0.30643568]
[1745548082329,0.29027939,600.78,598.74,0.30643568]
[1745548083830,0.29027939,600.78,598.73,1.49]
[1745548084025,0.29027939,600.78,598.74,0.30643728]
[1745548085032,1.25428612,600.83,598.74,0.30643728]
[1745548085329,0.29027939,600.77,598.74,0.30643728]
[1745548087331,0.29027939,600.77,598.7,0.30643728]
[1745548087630,0.29027939,600.77,598.71,0.30643728]
[1745548087930,0.29027939,600.77,598.7,0.30643728]
[1745548088230,1.25428612,600.89,598.71,0.30643728]
[1745548088530,0.29027697,600.76,598.69,0.29027697]
[1745548088731,1.25428612,600.89,598.7,0.30643728]
[1745548089025,1.25428612,600.77,598.7,0.30643728]
[1745548089531,0.2902915,600.76,598.71,1.458]
[1745548089731,0.2902915,600.76,598.72,0.30643728]
[1745548090431,0.2902915,600.76,598.73,0.30643728]
[1745548090626,0.2902915,600.76,598.74,0.30643728]
[1745548090829,0.2902915,600.76,598.75,0.30643728]
[1745548091026,1.25428612,600.67,598.76,0.30643728]
[1745548091230,1.25428612,600.67,598.74,0.30643728]
[1745548091427,1.25428612,600.67,598.75,0.30643728]
[1745548091631,1.25428612,600.67,598.76,0.30643728]
[1745548091835,1.25428612,600.67,598.77,0.30643728]
[1745548092035,1.25428612,600.67,598.78,0.30643728]
[1745548092332,1.25428612,600.67,598.79,0.30643728]
[1745548092638,1.25428612,600.67,598.8,0.30643728]
[1745548092938,1.25428612,600.67,598.81,0.30643728]
[1745548093132,1.25428612,600.67,598.8,1.212]
[1745548093337,1.25428612,600.67,598.81,0.30643728]
[1745548094039,1.25428612,600.49,598.81,1.83243728]
[1745548094332,1.25428612,600.49,598.87,1.05852008]
[1745548094531,0.29031087,600.48,598.88,0.30643728]
[1745548096041,0.29031087,600.48,598.87,1.05852008]
[1745548096237,0.29031087,600.48,598.88,0.30643785]
[1745548096737,1.25428612,600.46,598.91,1.05852008]
[1745548096943,1.25428612,600.46,598.92,0.30643785]
[1745548097337,0.2903024,600.45,598.92,0.30643785]
[1745548098639,1.25428612,600.44,598.94,1.05852008]
[1745548098841,1.25428612,600.44,598.95,0.30643785]
[1745548101042,0.2903024,600.45,598.96,1.05852008]
[1745548101043,1.25428612,600.42,598.96,1.05852008]
[1745548101245,1.25428612,600.42,598.97,0.30643785]
[1745548102242,1.25428612,600.42,598.96,1.05852008]
[1745548103236,0.29030119,600.41,598.96,1.05852008]
[1745548104443,0.29030119,600.41,598.81,1.526]
[1745548104444,0.29030119,600.41,598.85,1.05852008]
[1745548104739,0.29030119,600.41,598.86,0.3064095]
[1745548106042,1.25428612,600.75,598.86,0.3064095]
[1745548106344,0.29027455,600.4,598.86,0.3064095]
[1745548106537,1.25428612,600.75,598.86,0.3064095]
[1745548106741,1.25428612,600.75,598.85,1.05852008]
[1745548106939,1.25428612,600.86,598.86,0.30641348]
[1745548107139,1.25428612,600.86,598.82,0.30641348]
[1745548107444,0.29026608,600.85,598.87,1.347]
[1745548107643,0.29026608,600.85,598.88,0.30641348]
[1745548108245,0.29026608,600.85,598.87,1.347]
[1745548108447,0.29026608,600.85,598.88,0.30640586]
[1745548109039,1.25428612,600.86,598.88,0.30640586]
[1745548109444,0.29024429,600.84,598.88,0.30640586]
[1745548109747,1.25428612,600.8,598.88,0.30640586]
[1745548112348,0.29023945,600.79,598.88,0.30640586]
[1745548113649,0.29023945,600.79,598.89,1.055]
[1745548113845,0.29023945,600.79,598.9,0.30640586]
[1745548114447,0.29023945,600.79,598.89,1.055]
[1745548114650,0.29023945,600.79,598.9,0.3062222]
[1745548114849,0.29023945,600.79,598.91,0.3062222]
[1745548115051,1.25428612,600.93,598.92,0.3062222]
[1745548115247,1.25428612,600.93,598.93,0.3062222]
[1745548115446,0.29013419,600.79,598.94,0.3062222]
[1745548115647,1.25428612,600.93,598.95,0.3062222]
[1745548115849,1.25428612,600.93,598.9,0.3062222]
[1745548116045,1.25428612,600.93,598.91,0.3062222]
[1745548116246,1.25428612,600.93,598.92,0.3062222]
[1745548116545,1.25428612,600.93,598.93,0.3062222]
[1745548116846,1.25428612,600.93,598.94,0.3062222]
[1745548117044,1.25428612,600.93,598.95,0.3062222]
[1745548117255,1.25428612,600.93,598.96,0.3062222]
[1745548117452,1.25428612,600.93,598.89,1.055]
[1745548117453,0.29013419,600.92,599.09,1.05852008]
[1745548117746,0.29013419,600.92,599.1,0.3062222]
[1745548118251,0.29013419,600.92,599.11,1.095]
[1745548118447,0.29013419,600.92,599.12,0.3062222]
[1745548120754,0.29013419,600.92,599.13,0.30621751]
[1745548121051,1.25428612,601.8,599.14,0.30621751]
[1745548121247,1.25428612,601.8,599.12,0.30621751]
[1745548121447,0.29002659,600.91,599.13,0.30621751]
[1745548121753,1.25428612,601.8,599.14,0.30621751]
[1745548122051,1.25428612,601.8,599.15,0.30621751]
[1745548122248,1.25428612,601.88,599.16,0.3062147]
[1745548122452,1.25428612,601.88,599.12,0.3062147]
[1745548122755,1.25428612,601.88,599.13,0.3062147]
[1745548122950,1.25428612,601.88,599.14,0.3062147]
[1745548123251,1.25428612,601.88,599.15,0.3062147]
[1745548123452,0.29001692,601.87,599.15,0.3062147]
[1745548123652,0.29001692,601.87,599.15,1.3982147]
[1745548123852,0.29001692,601.87,599.16,0.30621097]
[1745548124053,1.25428612,601.88,599.16,0.30621097]
[1745548124253,1.25428612,601.93,599.16,0.30621097]
[1745548124554,0.29001208,601.86,599.16,0.30621097]
[1745548125253,0.29001208,601.86,599.15,1.092]
[1745548125453,0.29001208,601.86,599.16,0.30621174]
[1745548127154,1.25428612,601.93,599.16,0.30621174]
[1745548127350,0.29000604,601.85,599.16,0.30621174]
[1745548127551,1.25428612,601.93,599.16,0.30621174]